[Event "January 9 Early 2024"]
[Site "https://www.chess.com"]
[Date "2024.01.11"]
[Round "7"]
[White "Toktomushev, Teimur"]
[Black "Recuero Guerra, Javier"]
[Result "1-0"]
[Board "183"]
[TimeControl "180+1"]
[WhiteFideId "14176726"]
[BlackFideId "2254085"]
[WhiteElo "2475"]
[BlackElo "2294"]
[WhiteTeam "UKR"]
[BlackTeam "ESP"]
[WhiteClock "0:00:02"]
[BlackClock "0:00:02"]

1. d4 {[%clk 0:02:58]}  Nf6 {[%clk 0:02:59]} 2. c4 {[%clk 0:02:58]}  e6 {[%clk 0:02:55]} 3. Nf3 {[%clk 0:02:56]}  b6 {[%clk 0:02:54]} 4. g3 {[%clk 0:02:56]}  Bb7 {[%clk 0:02:54]} 5. Bg2 {[%clk 0:02:55]}  Be7 {[%clk 0:02:54]} 6. O-O {[%clk 0:02:55]}  O-O {[%clk 0:02:54]} 7. Qc2 {[%clk 0:02:56]}  c5 {[%clk 0:02:39]} 8. d5 {[%clk 0:02:36]}  exd5 {[%clk 0:02:16]} 9. Nh4 {[%clk 0:02:35]}  Bc6 {[%clk 0:01:53]} 10. Nc3 {[%clk 0:01:11]}  d4 {[%clk 0:01:47]} 11. Nd5 {[%clk 0:01:11]}  Bxd5 {[%clk 0:01:44]} 12. cxd5 {[%clk 0:01:10]}  d6 {[%clk 0:01:43]} 13. Nf5 {[%clk 0:00:56]}  Nbd7 {[%clk 0:01:37]} 14. Bf4 {[%clk 0:00:37]}  Ne8 {[%clk 0:01:09]} 15. Qe4 {[%clk 0:00:37]}  Bf6 {[%clk 0:00:39]} 16. Bxd6 {[%clk 0:00:20]}  Nxd6 {[%clk 0:00:37]} 17. Nxd6 {[%clk 0:00:21]}  Qc7 {[%clk 0:00:34]} 18. Nb5 {[%clk 0:00:13]}  Qe5 {[%clk 0:00:31]} 19. Qg4 {[%clk 0:00:06]}  Rad8 {[%clk 0:00:27]} 20. Na3 {[%clk 0:00:07]}  Rfe8 {[%clk 0:00:22]} 21. Rfe1 {[%clk 0:00:05]}  Qg5 {[%clk 0:00:19]} 22. Qxg5 {[%clk 0:00:03]}  Bxg5 {[%clk 0:00:20]} 23. Nc4 {[%clk 0:00:03]}  Ne5 {[%clk 0:00:14]} 24. Nxe5 {[%clk 0:00:03]}  Rxe5 {[%clk 0:00:14]} 25. f4 {[%clk 0:00:03]}  Re3 {[%clk 0:00:08]} 26. fxg5 {[%clk 0:00:03]}  Rde8 {[%clk 0:00:08]} 27. Kf2 {[%clk 0:00:03]}  R8e5 {[%clk 0:00:07]} 28. h4 {[%clk 0:00:02]}  Rf5+ {[%clk 0:00:07]} 29. Bf3 {[%clk 0:00:03]}  Rfe5 {[%clk 0:00:06]} 30. Rad1 {[%clk 0:00:03]}  Kf8 {[%clk 0:00:06]} 31. Rd3 {[%clk 0:00:03]}  Rxd3 {[%clk 0:00:04]} 32. exd3 {[%clk 0:00:04]}  Rxe1 {[%clk 0:00:02]} 33. Kxe1 {[%clk 0:00:05]}  Ke7 {[%clk 0:00:03]} 34. Kf2 {[%clk 0:00:04]}  Kd6 {[%clk 0:00:04]} 35. Be4 {[%clk 0:00:05]}  g6 {[%clk 0:00:03]} 36. Kf3 {[%clk 0:00:06]}  Ke5 {[%clk 0:00:04]} 37. h5 {[%clk 0:00:04]}  b5 {[%clk 0:00:03]} 38. hxg6 {[%clk 0:00:02]}  hxg6 {[%clk 0:00:04]} 39. b3 {[%clk 0:00:02]}  a5 {[%clk 0:00:04]} 40. a4 {[%clk 0:00:02]}  bxa4 {[%clk 0:00:02]} 41. bxa4 {[%clk 0:00:02]} 1-0

[Event "January 9 Early 2024"]
[Site "https://www.chess.com"]
[Date "2024.01.11"]
[Round "7"]
[White "Novozhilov, Semen"]
[Black "Christiansen, Johan-Sebastian"]
[Result "1-0"]
[Board "184"]
[TimeControl "180+1"]
[WhiteFideId "24289167"]
[BlackFideId "1512668"]
[WhiteElo "2716"]
[BlackElo "2868"]
[WhiteTeam "RUS"]
[BlackTeam "NOR"]
[WhiteClock "0:00:13"]
[BlackClock "0:00:03"]

1. d4 {[%clk 0:03:00]}  g6 {[%clk 0:02:56]} 2. e4 {[%clk 0:03:00]}  Bg7 {[%clk 0:02:57]} 3. Nc3 {[%clk 0:03:00]}  d6 {[%clk 0:02:58]} 4. Nf3 {[%clk 0:03:01]}  a6 {[%clk 0:02:58]} 5. Be3 {[%clk 0:03:01]}  e6 {[%clk 0:02:59]} 6. Qd2 {[%clk 0:03:00]}  Ne7 {[%clk 0:03:00]} 7. a3 {[%clk 0:02:58]}  h6 {[%clk 0:03:00]} 8. Bd3 {[%clk 0:02:58]}  b6 {[%clk 0:03:01]} 9. O-O {[%clk 0:02:58]}  Nd7 {[%clk 0:03:02]} 10. b4 {[%clk 0:02:58]}  Bb7 {[%clk 0:03:02]} 11. h3 {[%clk 0:02:58]}  g5 {[%clk 0:03:02]} 12. Rab1 {[%clk 0:02:56]}  Ng6 {[%clk 0:03:02]} 13. g3 {[%clk 0:02:49]}  O-O {[%clk 0:03:02]} 14. Bc4 {[%clk 0:02:33]}  Qe7 {[%clk 0:02:58]} 15. a4 {[%clk 0:02:28]}  Kh8 {[%clk 0:02:57]} 16. d5 {[%clk 0:02:20]}  f5 {[%clk 0:02:45]} 17. dxe6 {[%clk 0:02:13]}  Nde5 {[%clk 0:02:41]} 18. Be2 {[%clk 0:01:55]}  fxe4 {[%clk 0:02:31]} 19. Nxe5 {[%clk 0:01:53]}  Nxe5 {[%clk 0:02:19]} 20. Nd5 {[%clk 0:01:53]}  Qxe6 {[%clk 0:02:19]} 21. Rfd1 {[%clk 0:01:33]}  Qxh3 {[%clk 0:02:17]} 22. Qe1 {[%clk 0:01:27]}  Rf7 {[%clk 0:01:34]} 23. Qf1 {[%clk 0:01:21]}  Qe6 {[%clk 0:01:34]} 24. c4 {[%clk 0:01:16]}  Raf8 {[%clk 0:01:34]} 25. Rb3 {[%clk 0:01:06]}  Qg6 {[%clk 0:01:24]} 26. Bd4 {[%clk 0:01:01]}  h5 {[%clk 0:01:17]} 27. Qh3 {[%clk 0:00:48]}  g4 {[%clk 0:01:16]} 28. Qg2 {[%clk 0:00:43]}  Bxd5 {[%clk 0:01:09]} 29. cxd5 {[%clk 0:00:43]}  Nf3+ {[%clk 0:01:09]} 30. Bxf3 {[%clk 0:00:42]}  gxf3 {[%clk 0:01:08]} 31. Qh3 {[%clk 0:00:35]}  Bxd4 {[%clk 0:01:02]} 32. Rxd4 {[%clk 0:00:34]}  Rf4 {[%clk 0:00:38]} 33. Rc3 {[%clk 0:00:23]}  Rg4 {[%clk 0:00:33]} 34. Rxc7 {[%clk 0:00:18]}  h4 {[%clk 0:00:30]} 35. Re7 {[%clk 0:00:17]}  Kg8 {[%clk 0:00:13]} 36. Qxg4 {[%clk 0:00:11]}  Qxg4 {[%clk 0:00:13]} 37. Rexe4 {[%clk 0:00:12]}  Qh3 {[%clk 0:00:10]} 38. Rg4+ {[%clk 0:00:12]}  Kf7 {[%clk 0:00:09]} 39. gxh4 {[%clk 0:00:13]}  Rg8 {[%clk 0:00:08]} 40. Rf4+ {[%clk 0:00:13]}  Ke7 {[%clk 0:00:06]} 41. Rxg8 {[%clk 0:00:13]}  a5 {[%clk 0:00:03]} 42. bxa5 {[%clk 0:00:12]}  bxa5 {[%clk 0:00:04]} 43. Rg3 {[%clk 0:00:12]}  Qc8 {[%clk 0:00:03]} 44. Rg7+ {[%clk 0:00:12]}  Ke8 {[%clk 0:00:03]} 45. Rg8+ {[%clk 0:00:13]}  Ke7 {[%clk 0:00:03]} 46. Rxc8 {[%clk 0:00:13]} 1-0

[Event "January 9 Early 2024"]
[Site "https://www.chess.com"]
[Date "2024.01.11"]
[Round "7"]
[White "Aronian, Levon"]
[Black "Daneshvar, Bardiya"]
[Result "1-0"]
[Board "188"]
[TimeControl "180+1"]
[WhiteFideId "13300474"]
[BlackFideId "12576468"]
[WhiteElo "3096"]
[BlackElo "2944"]
[WhiteTeam "USA"]
[BlackTeam "IRI"]
[WhiteClock "0:00:09"]
[BlackClock "0:00:03"]

1. e4 {[%clk 0:03:00]}  c5 {[%clk 0:02:57]} 2. Nf3 {[%clk 0:03:00]}  g6 {[%clk 0:02:58]} 3. c4 {[%clk 0:02:57]}  Nc6 {[%clk 0:02:58]} 4. d4 {[%clk 0:02:58]}  cxd4 {[%clk 0:02:59]} 5. Nxd4 {[%clk 0:02:58]}  Nf6 {[%clk 0:02:59]} 6. Nc3 {[%clk 0:02:58]}  d6 {[%clk 0:03:00]} 7. Nc2 {[%clk 0:02:59]}  Bg7 {[%clk 0:02:59]} 8. Be2 {[%clk 0:02:59]}  O-O {[%clk 0:02:59]} 9. O-O {[%clk 0:02:59]}  Nd7 {[%clk 0:03:00]} 10. Bd2 {[%clk 0:02:59]}  Nc5 {[%clk 0:03:00]} 11. b4 {[%clk 0:02:59]}  Ne6 {[%clk 0:02:54]} 12. Rc1 {[%clk 0:02:58]}  a5 {[%clk 0:02:53]} 13. b5 {[%clk 0:02:57]}  Ncd4 {[%clk 0:02:47]} 14. Nxd4 {[%clk 0:02:55]}  Nxd4 {[%clk 0:02:48]} 15. Be3 {[%clk 0:02:54]}  e5 {[%clk 0:02:45]} 16. Nd5 {[%clk 0:02:44]}  Be6 {[%clk 0:02:41]} 17. Bd3 {[%clk 0:02:39]}  Rc8 {[%clk 0:02:37]} 18. Qd2 {[%clk 0:02:36]}  b6 {[%clk 0:02:22]} 19. Bg5 {[%clk 0:02:33]}  f6 {[%clk 0:02:20]} 20. Be3 {[%clk 0:02:34]}  Rc5 {[%clk 0:02:14]} 21. f4 {[%clk 0:02:25]}  Bxd5 {[%clk 0:02:11]} 22. cxd5 {[%clk 0:02:14]}  Qd7 {[%clk 0:02:03]} 23. Rxc5 {[%clk 0:01:56]}  dxc5 {[%clk 0:02:04]} 24. fxe5 {[%clk 0:01:41]}  fxe5 {[%clk 0:02:00]} 25. Rxf8+ {[%clk 0:01:40]}  Bxf8 {[%clk 0:02:01]} 26. h3 {[%clk 0:01:34]}  Bd6 {[%clk 0:01:30]} 27. Qf2 {[%clk 0:01:32]}  Qf7 {[%clk 0:01:28]} 28. Qh4 {[%clk 0:01:30]}  Be7 {[%clk 0:01:24]} 29. Qg4 {[%clk 0:01:30]}  h5 {[%clk 0:01:12]} 30. Qc8+ {[%clk 0:01:16]}  Qf8 {[%clk 0:01:11]} 31. Qb7 {[%clk 0:01:04]}  Qf6 {[%clk 0:00:59]} 32. Bc4 {[%clk 0:00:58]}  Kh8 {[%clk 0:00:51]} 33. d6 {[%clk 0:00:51]}  Qxd6 {[%clk 0:00:49]} 34. Bh6 {[%clk 0:00:37]}  Ne6 {[%clk 0:00:33]} 35. Qc8+ {[%clk 0:00:31]}  Nd8 {[%clk 0:00:33]} 36. Bd5 {[%clk 0:00:31]}  Kh7 {[%clk 0:00:30]} 37. Be3 {[%clk 0:00:31]}  Kg7 {[%clk 0:00:26]} 38. g4 {[%clk 0:00:31]}  hxg4 {[%clk 0:00:25]} 39. Qxg4 {[%clk 0:00:30]}  Qf6 {[%clk 0:00:23]} 40. a4 {[%clk 0:00:25]}  Qh4 {[%clk 0:00:19]} 41. Qf3 {[%clk 0:00:17]}  Bg5 {[%clk 0:00:14]} 42. Bf2 {[%clk 0:00:13]}  Qf4 {[%clk 0:00:12]} 43. Qe2 {[%clk 0:00:12]}  Qc1+ {[%clk 0:00:07]} 44. Kg2 {[%clk 0:00:12]}  Kf6 {[%clk 0:00:06]} 45. Qg4 {[%clk 0:00:11]}  Qd2 {[%clk 0:00:06]} 46. Qd7 {[%clk 0:00:10]}  Be3 {[%clk 0:00:03]} 47. Qxd8+ {[%clk 0:00:09]}  Kg7 {[%clk 0:00:03]} 48. Qe7+ {[%clk 0:00:10]}  Kh6 {[%clk 0:00:04]} 49. Qf8+ {[%clk 0:00:09]}  Kh7 {[%clk 0:00:03]} 50. Bg8+ {[%clk 0:00:09]} 1-0

[Event "January 9 Early 2024"]
[Site "https://www.chess.com"]
[Date "2024.01.11"]
[Round "7"]
[White "Kanyamarala, Trisha"]
[Black "Von Buelow, Georg"]
[Result "1-0"]
[Board "190"]
[TimeControl "180+1"]
[WhiteFideId "45004722"]
[BlackFideId "4620658"]
[WhiteElo "2519"]
[BlackElo "2145"]
[WhiteTeam "IRL"]
[BlackTeam "GER"]
[WhiteClock "0:00:04"]
[BlackClock "0:00:03"]

1. c4 {[%clk 0:02:56]}  Nf6 {[%clk 0:02:55]} 2. Nc3 {[%clk 0:02:53]}  c5 {[%clk 0:02:54]} 3. g3 {[%clk 0:02:53]}  e6 {[%clk 0:02:53]} 4. Nf3 {[%clk 0:02:51]}  b6 {[%clk 0:02:52]} 5. Bg2 {[%clk 0:02:51]}  Bb7 {[%clk 0:02:53]} 6. O-O {[%clk 0:02:51]}  Be7 {[%clk 0:02:52]} 7. d4 {[%clk 0:02:43]}  cxd4 {[%clk 0:02:52]} 8. Nxd4 {[%clk 0:02:43]}  Bxg2 {[%clk 0:02:48]} 9. Kxg2 {[%clk 0:02:42]}  Qc7 {[%clk 0:02:48]} 10. Ncb5 {[%clk 0:02:22]}  Qb7+ {[%clk 0:02:39]} 11. Kg1 {[%clk 0:02:22]}  a6 {[%clk 0:02:39]} 12. Nc3 {[%clk 0:02:21]}  d6 {[%clk 0:02:37]} 13. b3 {[%clk 0:02:17]}  O-O {[%clk 0:02:35]} 14. Ba3 {[%clk 0:02:09]}  Rd8 {[%clk 0:02:32]} 15. Re1 {[%clk 0:02:04]}  Nbd7 {[%clk 0:02:30]} 16. Rc1 {[%clk 0:01:50]}  Rac8 {[%clk 0:02:29]} 17. Nc2 {[%clk 0:01:46]}  Nc5 {[%clk 0:02:13]} 18. Nd4 {[%clk 0:01:32]}  h6 {[%clk 0:02:06]} 19. Bb2 {[%clk 0:01:27]}  Ncd7 {[%clk 0:01:37]} 20. e4 {[%clk 0:01:22]}  Nc5 {[%clk 0:01:27]} 21. Qe2 {[%clk 0:01:18]}  Bf8 {[%clk 0:01:24]} 22. Rcd1 {[%clk 0:01:04]}  Ncd7 {[%clk 0:01:09]} 23. f4 {[%clk 0:00:51]}  e5 {[%clk 0:00:31]} 24. Nf5 {[%clk 0:00:47]}  Nc5 {[%clk 0:00:18]} 25. Nd5 {[%clk 0:00:36]}  Nxd5 {[%clk 0:00:16]} 26. cxd5 {[%clk 0:00:22]}  f6 {[%clk 0:00:16]} 27. Qg4 {[%clk 0:00:18]}  Kh7 {[%clk 0:00:15]} 28. Nh4 {[%clk 0:00:16]}  Qf7 {[%clk 0:00:13]} 29. Nf3 {[%clk 0:00:14]}  Nd7 {[%clk 0:00:12]} 30. Rf1 {[%clk 0:00:13]}  Rc2 {[%clk 0:00:11]} 31. fxe5 {[%clk 0:00:11]}  dxe5 {[%clk 0:00:10]} 32. Bxe5 {[%clk 0:00:08]}  Rxa2 {[%clk 0:00:08]} 33. Bd4 {[%clk 0:00:07]}  Qg6 {[%clk 0:00:07]} 34. Qf4 {[%clk 0:00:07]}  Bc5 {[%clk 0:00:05]} 35. Nh4 {[%clk 0:00:07]}  Qg5 {[%clk 0:00:05]} 36. Qxg5 {[%clk 0:00:07]}  hxg5 {[%clk 0:00:05]} 37. Nf5 {[%clk 0:00:07]}  Bxd4+ {[%clk 0:00:06]} 38. Nxd4 {[%clk 0:00:06]}  Nc5 {[%clk 0:00:06]} 39. Nc6 {[%clk 0:00:06]}  Re8 {[%clk 0:00:06]} 40. Rd4 {[%clk 0:00:05]}  Nxb3 {[%clk 0:00:06]} 41. Rb4 {[%clk 0:00:04]}  Nd2 {[%clk 0:00:05]} 42. Rf2 {[%clk 0:00:04]}  b5 {[%clk 0:00:04]} 43. Rd4 {[%clk 0:00:03]}  Ra1+ {[%clk 0:00:03]} 44. Kg2 {[%clk 0:00:03]}  Nxe4 {[%clk 0:00:03]} 45. Re2 {[%clk 0:00:04]}  f5 {[%clk 0:00:03]} 46. d6 {[%clk 0:00:04]} 1-0

[Event "January 9 Early 2024"]
[Site "https://www.chess.com"]
[Date "2024.01.11"]
[Round "7"]
[White "Buscar, Michael"]
[Black "Goryachkina, Aleksandra"]
[Result "0-1"]
[Board "193"]
[TimeControl "180+1"]
[WhiteFideId "2603616"]
[BlackFideId "4147103"]
[WhiteElo "2427"]
[BlackElo "2658"]
[WhiteTeam "CAN"]
[BlackTeam "FID"]
[WhiteClock "0:00:13"]
[BlackClock "0:00:08"]

1. d4 {[%clk 0:03:00]}  Nf6 {[%clk 0:02:57]} 2. c4 {[%clk 0:03:00]}  e6 {[%clk 0:02:57]} 3. Nf3 {[%clk 0:02:59]}  d5 {[%clk 0:02:57]} 4. g3 {[%clk 0:02:59]}  Bb4+ {[%clk 0:02:55]} 5. Bd2 {[%clk 0:02:57]}  a5 {[%clk 0:02:55]} 6. a3 {[%clk 0:02:52]}  Bxd2+ {[%clk 0:02:54]} 7. Nbxd2 {[%clk 0:02:52]}  O-O {[%clk 0:02:52]} 8. Bg2 {[%clk 0:02:52]}  c6 {[%clk 0:02:49]} 9. O-O {[%clk 0:02:52]}  b6 {[%clk 0:02:49]} 10. Qc2 {[%clk 0:02:43]}  Bb7 {[%clk 0:02:49]} 11. cxd5 {[%clk 0:02:38]}  cxd5 {[%clk 0:02:46]} 12. Rfc1 {[%clk 0:02:37]}  Nc6 {[%clk 0:02:45]} 13. e3 {[%clk 0:02:23]}  Rc8 {[%clk 0:02:42]} 14. Qb3 {[%clk 0:02:20]}  Nd7 {[%clk 0:02:33]} 15. Bf1 {[%clk 0:02:19]}  Qe7 {[%clk 0:02:26]} 16. Bb5 {[%clk 0:02:15]}  h6 {[%clk 0:02:14]} 17. Rc2 {[%clk 0:01:59]}  e5 {[%clk 0:02:04]} 18. Bxc6 {[%clk 0:01:34]}  Rxc6 {[%clk 0:01:53]} 19. Rxc6 {[%clk 0:01:28]}  Bxc6 {[%clk 0:01:52]} 20. Rc1 {[%clk 0:01:20]}  Ba8 {[%clk 0:01:39]} 21. dxe5 {[%clk 0:01:14]}  Nxe5 {[%clk 0:01:38]} 22. Qxb6 {[%clk 0:01:00]}  Nc4 {[%clk 0:01:12]} 23. Qd4 {[%clk 0:00:34]}  Rb8 {[%clk 0:01:05]} 24. Rc2 {[%clk 0:00:21]}  a4 {[%clk 0:00:57]} 25. Ne1 {[%clk 0:00:20]}  h5 {[%clk 0:00:34]} 26. Nxc4 {[%clk 0:00:19]}  dxc4 {[%clk 0:00:34]} 27. Qxc4 {[%clk 0:00:20]}  Qb7 {[%clk 0:00:27]} 28. f3 {[%clk 0:00:19]}  Qa7 {[%clk 0:00:21]} 29. Kf2 {[%clk 0:00:19]}  Re8 {[%clk 0:00:20]} 30. Qd4 {[%clk 0:00:18]}  Qa6 {[%clk 0:00:19]} 31. Ng2 {[%clk 0:00:17]}  Qb7 {[%clk 0:00:17]} 32. e4 {[%clk 0:00:17]}  Qb3 {[%clk 0:00:15]} 33. Rd2 {[%clk 0:00:17]}  Rc8 {[%clk 0:00:12]} 34. Nh4 {[%clk 0:00:17]}  Kh7 {[%clk 0:00:02]} 35. Nf5 {[%clk 0:00:17]}  f6 {[%clk 0:00:02]} 36. Qd7 {[%clk 0:00:17]}  Rg8 {[%clk 0:00:02]} 37. Qf7 {[%clk 0:00:17]}  Qxf7 {[%clk 0:00:01]} 38. Nd6 {[%clk 0:00:15]}  Qg6 {[%clk 0:00:02]} 39. Kg2 {[%clk 0:00:15]}  Rd8 {[%clk 0:00:02]} 40. Rd4 {[%clk 0:00:14]}  Rd7 {[%clk 0:00:03]} 41. Nb5 {[%clk 0:00:12]}  Bc6 {[%clk 0:00:03]} 42. Rxd7 {[%clk 0:00:11]}  Bxd7 {[%clk 0:00:04]} 43. Nd4 {[%clk 0:00:12]}  Qf7 {[%clk 0:00:04]} 44. Ne2 {[%clk 0:00:12]}  Qc4 {[%clk 0:00:04]} 45. Nf4 {[%clk 0:00:13]}  Qb3 {[%clk 0:00:05]} 46. Nxh5 {[%clk 0:00:11]}  Qc2+ {[%clk 0:00:05]} 47. Kg1 {[%clk 0:00:12]}  Qxb2 {[%clk 0:00:06]} 48. Nf4 {[%clk 0:00:13]}  Qb1+ {[%clk 0:00:07]} 49. Kf2 {[%clk 0:00:13]}  Qa2+ {[%clk 0:00:07]} 50. Kf1 {[%clk 0:00:13]}  Qxa3 {[%clk 0:00:08]} 0-1

[Event "January 9 Early 2024"]
[Site "https://www.chess.com"]
[Date "2024.01.11"]
[Round "7"]
[White "Hrebenshchykova, Yelyzaveta"]
[Black "Chemin, Justo Reinaldo"]
[Result "1-0"]
[Board "197"]
[TimeControl "180+1"]
[WhiteFideId "14159899"]
[BlackFideId "2101580"]
[WhiteElo "2490"]
[BlackElo "2240"]
[WhiteTeam "UKR"]
[BlackTeam "BRA"]
[WhiteClock "0:00:05"]
[BlackClock "0:00:01"]

1. e4 {[%clk 0:03:00]}  e5 {[%clk 0:02:58]} 2. Nf3 {[%clk 0:02:59]}  Nc6 {[%clk 0:02:57]} 3. Bb5 {[%clk 0:02:59]}  a6 {[%clk 0:02:55]} 4. Ba4 {[%clk 0:02:59]}  Nf6 {[%clk 0:02:53]} 5. O-O {[%clk 0:02:52]}  b5 {[%clk 0:02:50]} 6. Bb3 {[%clk 0:02:51]}  Be7 {[%clk 0:02:51]} 7. d4 {[%clk 0:02:50]}  d6 {[%clk 0:02:38]} 8. c3 {[%clk 0:02:45]}  Bg4 {[%clk 0:02:35]} 9. Be3 {[%clk 0:02:38]}  O-O {[%clk 0:02:31]} 10. h3 {[%clk 0:02:37]}  Bh5 {[%clk 0:02:30]} 11. Nbd2 {[%clk 0:02:29]}  Bg6 {[%clk 0:02:21]} 12. d5 {[%clk 0:02:23]}  Nb8 {[%clk 0:02:18]} 13. Bc2 {[%clk 0:02:21]}  Nbd7 {[%clk 0:02:18]} 14. Re1 {[%clk 0:02:05]}  Qc8 {[%clk 0:02:08]} 15. Nh4 {[%clk 0:01:32]}  c6 {[%clk 0:02:02]} 16. Nxg6 {[%clk 0:01:31]}  hxg6 {[%clk 0:02:02]} 17. dxc6 {[%clk 0:01:29]}  Qxc6 {[%clk 0:02:01]} 18. a4 {[%clk 0:01:24]}  Nc5 {[%clk 0:01:54]} 19. Bg5 {[%clk 0:01:20]}  bxa4 {[%clk 0:01:46]} 20. Nc4 {[%clk 0:01:15]}  Rad8 {[%clk 0:01:28]} 21. Bxa4 {[%clk 0:00:51]}  Nxa4 {[%clk 0:01:27]} 22. Qxa4 {[%clk 0:00:51]}  Qb5 {[%clk 0:01:16]} 23. Qxa6 {[%clk 0:00:47]}  Qb3 {[%clk 0:01:10]} 24. Na5 {[%clk 0:00:42]}  Qxb2 {[%clk 0:01:06]} 25. Nc6 {[%clk 0:00:43]}  Rde8 {[%clk 0:00:59]} 26. Qc4 {[%clk 0:00:34]}  Bd8 {[%clk 0:00:43]} 27. Reb1 {[%clk 0:00:33]}  Qc2 {[%clk 0:00:41]} 28. Bxf6 {[%clk 0:00:14]}  gxf6 {[%clk 0:00:39]} 29. Nb4 {[%clk 0:00:11]}  Qd2 {[%clk 0:00:36]} 30. Rd1 {[%clk 0:00:11]}  Qg5 {[%clk 0:00:34]} 31. Rxd6 {[%clk 0:00:10]}  f5 {[%clk 0:00:29]} 32. Rad1 {[%clk 0:00:09]}  Bf6 {[%clk 0:00:19]} 33. Nd5 {[%clk 0:00:09]}  Bg7 {[%clk 0:00:18]} 34. exf5 {[%clk 0:00:09]}  gxf5 {[%clk 0:00:16]} 35. Ne3 {[%clk 0:00:08]}  f4 {[%clk 0:00:13]} 36. Nd5 {[%clk 0:00:07]}  f3 {[%clk 0:00:12]} 37. g3 {[%clk 0:00:07]}  Qf5 {[%clk 0:00:11]} 38. Kh2 {[%clk 0:00:07]}  e4 {[%clk 0:00:11]} 39. Ne3 {[%clk 0:00:07]}  Qg5 {[%clk 0:00:09]} 40. R1d5 {[%clk 0:00:07]}  Qe7 {[%clk 0:00:08]} 41. Rd7 {[%clk 0:00:06]}  Qe6 {[%clk 0:00:07]} 42. R7d6 {[%clk 0:00:06]}  Qe7 {[%clk 0:00:07]} 43. Qb5 {[%clk 0:00:05]}  Rd8 {[%clk 0:00:05]} 44. Rxd8 {[%clk 0:00:05]}  Rxd8 {[%clk 0:00:05]} 45. Rxd8+ {[%clk 0:00:05]}  Qxd8 {[%clk 0:00:04]} 46. Qd5 {[%clk 0:00:05]}  Qb6 {[%clk 0:00:01]} 47. c4 {[%clk 0:00:05]}  Qb2 {[%clk 0:00:01]} 48. Kg1 {[%clk 0:00:05]}  Qc1+ {[%clk 0:00:01]} 49. Qd1 {[%clk 0:00:05]} 1-0

[Event "January 9 Early 2024"]
[Site "https://www.chess.com"]
[Date "2024.01.11"]
[Round "7"]
[White "Tharushi, T H D Niklesha"]
[Black "Poddubnyi, Viktor"]
[Result "0-1"]
[Board "198"]
[TimeControl "180+1"]
[WhiteFideId "9918264"]
[BlackFideId "4141989"]
[WhiteElo "2253"]
[BlackElo "2430"]
[WhiteTeam "SRI"]
[BlackTeam "RUS"]
[WhiteClock "0:00:05"]
[BlackClock "0:00:08"]

1. d4 {[%clk 0:02:48]}  g6 {[%clk 0:03:00]} 2. g3 {[%clk 0:02:40]}  Bg7 {[%clk 0:03:00]} 3. Bg2 {[%clk 0:02:40]}  Nf6 {[%clk 0:03:00]} 4. c3 {[%clk 0:02:39]}  O-O {[%clk 0:03:00]} 5. Nf3 {[%clk 0:02:39]}  d6 {[%clk 0:02:58]} 6. O-O {[%clk 0:02:39]}  Nc6 {[%clk 0:02:56]} 7. Nbd2 {[%clk 0:02:39]}  e5 {[%clk 0:02:56]} 8. e4 {[%clk 0:02:34]}  Bg4 {[%clk 0:02:39]} 9. h3 {[%clk 0:02:33]}  Bxf3 {[%clk 0:02:38]} 10. Nxf3 {[%clk 0:02:32]}  Nxe4 {[%clk 0:02:36]} 11. Nxe5 {[%clk 0:02:30]}  dxe5 {[%clk 0:02:27]} 12. Bxe4 {[%clk 0:02:29]}  exd4 {[%clk 0:02:28]} 13. Qf3 {[%clk 0:02:18]}  dxc3 {[%clk 0:02:17]} 14. bxc3 {[%clk 0:02:18]}  Ne5 {[%clk 0:02:15]} 15. Qg2 {[%clk 0:02:17]}  c6 {[%clk 0:02:12]} 16. Ba3 {[%clk 0:02:16]}  Re8 {[%clk 0:02:11]} 17. Rad1 {[%clk 0:02:16]}  Qb6 {[%clk 0:02:02]} 18. Rb1 {[%clk 0:02:08]}  Qa6 {[%clk 0:01:58]} 19. Rb3 {[%clk 0:02:02]}  Nc4 {[%clk 0:01:52]} 20. Bc1 {[%clk 0:01:51]}  Nd6 {[%clk 0:01:35]} 21. Bb1 {[%clk 0:01:42]}  Nb5 {[%clk 0:01:25]} 22. Bb2 {[%clk 0:01:34]}  Re7 {[%clk 0:01:17]} 23. Bc2 {[%clk 0:01:21]}  Rae8 {[%clk 0:00:56]} 24. a4 {[%clk 0:01:12]}  Qxa4 {[%clk 0:00:49]} 25. Ra1 {[%clk 0:00:53]}  Re1+ {[%clk 0:00:43]} 26. Rxe1 {[%clk 0:00:53]}  Rxe1+ {[%clk 0:00:44]} 27. Kh2 {[%clk 0:00:53]}  Re2 {[%clk 0:00:40]} 28. Bd1 {[%clk 0:00:50]}  Rd2 {[%clk 0:00:39]} 29. Qf3 {[%clk 0:00:41]}  Qa2 {[%clk 0:00:32]} 30. Qe3 {[%clk 0:00:05]}  Rxb2 {[%clk 0:00:21]} 31. Qe8+ {[%clk 0:00:05]}  Bf8 {[%clk 0:00:21]} 32. Rxb2 {[%clk 0:00:05]}  Qxb2 {[%clk 0:00:20]} 33. Kg2 {[%clk 0:00:06]}  Qxc3 {[%clk 0:00:20]} 34. Bg4 {[%clk 0:00:06]}  Qd4 {[%clk 0:00:16]} 35. Bc8 {[%clk 0:00:05]}  Nd6 {[%clk 0:00:13]} 36. Qd8 {[%clk 0:00:05]}  Qe4+ {[%clk 0:00:13]} 37. Kg1 {[%clk 0:00:05]}  Nxc8 {[%clk 0:00:13]} 38. Qxc8 {[%clk 0:00:06]}  b5 {[%clk 0:00:13]} 39. Qa6 {[%clk 0:00:05]}  b4 {[%clk 0:00:11]} 40. Qxa7 {[%clk 0:00:06]}  b3 {[%clk 0:00:10]} 41. Qb6 {[%clk 0:00:06]}  Qc2 {[%clk 0:00:09]} 42. Kg2 {[%clk 0:00:06]}  b2 {[%clk 0:00:09]} 43. h4 {[%clk 0:00:05]}  b1=Q {[%clk 0:00:09]} 44. Qd8 {[%clk 0:00:05]}  Qe4+ {[%clk 0:00:09]} 45. Kh3 {[%clk 0:00:05]}  Qbh1# {[%clk 0:00:08]} 0-1